[Event "Titled Tuesday Blitz February 07 Early 2023"]
[White "Yaran, Siar"]
[Black "Borges Feria, Yasel"]
[WhiteFideId "6323006"]
[BlackFideId "3504921"]
[WhiteElo "2288"]
[BlackElo "2439"]
[Result "1/2-1/2"]
[Round "11"]
[TimeControl "180+2"]
[Date "2023.02.07"]
[WhiteClock "0:00:11"]
[BlackClock "0:00:16"]

1. d4 {[%clk 0:02:56]}  Nf6 {[%clk 0:02:59]} 2. c4 {[%clk 0:02:56]}  e6 {[%clk 0:03:00]} 3. Nc3 {[%clk 0:02:57]}  Bb4 {[%clk 0:03:00]} 4. e3 {[%clk 0:02:57]}  O-O {[%clk 0:03:00]} 5. Bd3 {[%clk 0:02:58]}  c5 {[%clk 0:03:00]} 6. Nf3 {[%clk 0:02:58]}  d5 {[%clk 0:03:00]} 7. O-O {[%clk 0:02:52]}  dxc4 {[%clk 0:03:00]} 8. Bxc4 {[%clk 0:02:52]}  cxd4 {[%clk 0:03:01]} 9. exd4 {[%clk 0:02:47]}  b6 {[%clk 0:03:01]} 10. Bg5 {[%clk 0:02:33]}  Bb7 {[%clk 0:03:02]} 11. Rc1 {[%clk 0:02:31]}  Be7 {[%clk 0:02:59]} 12. a3 {[%clk 0:02:20]}  h6 {[%clk 0:02:59]} 13. Bh4 {[%clk 0:02:10]}  Nc6 {[%clk 0:02:59]} 14. Ba2 {[%clk 0:02:09]}  Nh5 {[%clk 0:02:59]} 15. Bg3 {[%clk 0:01:52]}  Nxg3 {[%clk 0:02:56]} 16. hxg3 {[%clk 0:01:53]}  Bf6 {[%clk 0:02:34]} 17. d5 {[%clk 0:01:53]}  exd5 {[%clk 0:02:33]} 18. Bxd5 {[%clk 0:01:51]}  Rc8 {[%clk 0:02:28]} 19. Rc2 {[%clk 0:01:38]}  Ba6 {[%clk 0:01:54]} 20. Re1 {[%clk 0:01:35]}  Ne7 {[%clk 0:01:54]} 21. Rd2 {[%clk 0:01:21]}  Nxd5 {[%clk 0:01:48]} 22. Nxd5 {[%clk 0:01:16]}  Bb7 {[%clk 0:01:25]} 23. Ne7+ {[%clk 0:01:09]}  Bxe7 {[%clk 0:01:26]} 24. Rxd8 {[%clk 0:01:09]}  Rfxd8 {[%clk 0:01:27]} 25. Qa4 {[%clk 0:01:09]}  Bf6 {[%clk 0:01:24]} 26. Qxa7 {[%clk 0:01:03]}  Bxf3 {[%clk 0:01:21]} 27. gxf3 {[%clk 0:01:02]}  Bxb2 {[%clk 0:01:21]} 28. Re7 {[%clk 0:00:49]}  Ra8 {[%clk 0:01:18]} 29. Qxb6 {[%clk 0:00:40]}  Bxa3 {[%clk 0:01:17]} 30. Rb7 {[%clk 0:00:40]}  Rf8 {[%clk 0:01:03]} 31. Qb3 {[%clk 0:00:35]}  Bc5 {[%clk 0:01:03]} 32. Qd5 {[%clk 0:00:32]}  Rac8 {[%clk 0:00:54]} 33. Kg2 {[%clk 0:00:28]}  Ba3 {[%clk 0:00:47]} 34. f4 {[%clk 0:00:24]}  Bc5 {[%clk 0:00:47]} 35. g4 {[%clk 0:00:22]}  Ba3 {[%clk 0:00:45]} 36. f5 {[%clk 0:00:22]}  Rcd8 {[%clk 0:00:39]} 37. Qb3 {[%clk 0:00:21]}  Bd6 {[%clk 0:00:38]} 38. Qc4 {[%clk 0:00:19]}  Be5 {[%clk 0:00:36]} 39. f4 {[%clk 0:00:16]}  Bf6 {[%clk 0:00:23]} 40. Rc7 {[%clk 0:00:16]}  Rd4 {[%clk 0:00:21]} 41. Qc1 {[%clk 0:00:14]}  Rfd8 {[%clk 0:00:18]} 42. Rc8 {[%clk 0:00:13]}  Rxc8 {[%clk 0:00:17]} 43. Qxc8+ {[%clk 0:00:13]}  Kh7 {[%clk 0:00:17]} 44. Qc1 {[%clk 0:00:14]}  Rd8 {[%clk 0:00:02]} 45. g5 {[%clk 0:00:14]}  hxg5 {[%clk 0:00:02]} 46. fxg5 {[%clk 0:00:15]}  Be5 {[%clk 0:00:03]} 47. Kf3 {[%clk 0:00:15]}  Kg8 {[%clk 0:00:03]} 48. Qc5 {[%clk 0:00:13]}  Bd6 {[%clk 0:00:02]} 49. Qb6 {[%clk 0:00:13]}  Be7 {[%clk 0:00:01]} 50. f6 {[%clk 0:00:14]}  gxf6 {[%clk 0:00:01]} 51. gxf6 {[%clk 0:00:14]}  Rd6 {[%clk 0:00:02]} 52. Qb8+ {[%clk 0:00:13]}  Bf8 {[%clk 0:00:03]} 53. Qb2 {[%clk 0:00:12]}  Re6 {[%clk 0:00:03]} 54. Kg4 {[%clk 0:00:13]}  Rd6 {[%clk 0:00:03]} 55. Kf5 {[%clk 0:00:13]}  Rd5+ {[%clk 0:00:04]} 56. Ke4 {[%clk 0:00:14]}  Rh5 {[%clk 0:00:04]} 57. Qg2+ {[%clk 0:00:14]}  Kh8 {[%clk 0:00:05]} 58. Qg4 {[%clk 0:00:14]}  Rh6 {[%clk 0:00:05]} 59. Kf5 {[%clk 0:00:14]}  Rg6 {[%clk 0:00:05]} 60. Qh5+ {[%clk 0:00:14]}  Kg8 {[%clk 0:00:06]} 61. Qh1 {[%clk 0:00:11]}  Rh6 {[%clk 0:00:03]} 62. Qg2+ {[%clk 0:00:10]}  Rg6 {[%clk 0:00:04]} 63. Qd5 {[%clk 0:00:10]}  Rh6 {[%clk 0:00:05]} 64. Kg5 {[%clk 0:00:10]}  Rg6+ {[%clk 0:00:05]} 65. Kf5 {[%clk 0:00:10]}  Rh6 {[%clk 0:00:06]} 66. Qd1 {[%clk 0:00:11]}  Rg6 {[%clk 0:00:06]} 67. Qe2 {[%clk 0:00:11]}  Rh6 {[%clk 0:00:06]} 68. Qf3 {[%clk 0:00:11]}  Rg6 {[%clk 0:00:07]} 69. Ke5 {[%clk 0:00:12]}  Rg5+ {[%clk 0:00:07]} 70. Ke4 {[%clk 0:00:12]}  Rg6 {[%clk 0:00:07]} 71. Kd5 {[%clk 0:00:12]}  Rg5+ {[%clk 0:00:07]} 72. Kc6 {[%clk 0:00:13]}  Rc5+ {[%clk 0:00:06]} 73. Kd7 {[%clk 0:00:13]}  Rg5 {[%clk 0:00:06]} 74. Qf4 {[%clk 0:00:12]}  Rg1 {[%clk 0:00:05]} 75. Qf2 {[%clk 0:00:11]}  Rg5 {[%clk 0:00:05]} 76. Qh2 {[%clk 0:00:10]}  Bg7 {[%clk 0:00:05]} 77. fxg7 {[%clk 0:00:10]}  Kxg7 {[%clk 0:00:06]} 78. Ke7 {[%clk 0:00:10]}  Rg6 {[%clk 0:00:05]} 79. Qe5+ {[%clk 0:00:11]}  Kg8 {[%clk 0:00:05]} 80. Qf5 {[%clk 0:00:10]}  Re6+ {[%clk 0:00:05]} 81. Kd7 {[%clk 0:00:11]}  Kg7 {[%clk 0:00:06]} 82. Qg5+ {[%clk 0:00:11]}  Kf8 {[%clk 0:00:06]} 83. Qh4 {[%clk 0:00:11]}  Kg7 {[%clk 0:00:07]} 84. Qg3+ {[%clk 0:00:11]}  Kf8 {[%clk 0:00:07]} 85. Qg5 {[%clk 0:00:12]}  Rg6 {[%clk 0:00:06]} 86. Qe5 {[%clk 0:00:12]}  Kg8 {[%clk 0:00:05]} 87. Qb8+ {[%clk 0:00:12]}  Kg7 {[%clk 0:00:05]} 88. Qb2+ {[%clk 0:00:12]}  Kg8 {[%clk 0:00:06]} 89. Qd4 {[%clk 0:00:12]}  Re6 {[%clk 0:00:06]} 90. Qh4 {[%clk 0:00:12]}  Rg6 {[%clk 0:00:07]} 91. Kd8 {[%clk 0:00:11]}  Re6 {[%clk 0:00:07]} 92. Qh5 {[%clk 0:00:11]}  Rg6 {[%clk 0:00:06]} 93. Qf5 {[%clk 0:00:11]}  Re6 {[%clk 0:00:07]} 94. Qb5 {[%clk 0:00:10]}  Rg6 {[%clk 0:00:07]} 95. Qb3 {[%clk 0:00:10]}  Re6 {[%clk 0:00:08]} 96. Kc7 {[%clk 0:00:10]}  Rg6 {[%clk 0:00:08]} 97. Kd7 {[%clk 0:00:11]}  Re6 {[%clk 0:00:09]} 98. Qh3 {[%clk 0:00:11]}  Rg6 {[%clk 0:00:09]} 99. Qh4 {[%clk 0:00:12]}  Re6 {[%clk 0:00:10]} 100. Qd8+ {[%clk 0:00:12]}  Kg7 {[%clk 0:00:10]} 101. Qc8 {[%clk 0:00:13]}  Rg6 {[%clk 0:00:10]} 102. Qc3+ {[%clk 0:00:14]}  Kg8 {[%clk 0:00:10]} 103. Qa5 {[%clk 0:00:13]}  Re6 {[%clk 0:00:10]} 104. Qa8+ {[%clk 0:00:10]}  Kg7 {[%clk 0:00:10]} 105. Kd8 {[%clk 0:00:11]}  Rg6 {[%clk 0:00:09]} 106. Qa1+ {[%clk 0:00:09]}  Kg8 {[%clk 0:00:09]} 107. Qa4 {[%clk 0:00:10]}  Re6 {[%clk 0:00:10]} 108. Qd7 {[%clk 0:00:10]}  Kg7 {[%clk 0:00:09]} 109. Qd4+ {[%clk 0:00:09]}  Kg8 {[%clk 0:00:10]} 110. Kd7 {[%clk 0:00:10]}  Rg6 {[%clk 0:00:09]} 111. Qf4 {[%clk 0:00:10]}  Re6 {[%clk 0:00:10]} 112. Qf5 {[%clk 0:00:10]}  Rg6 {[%clk 0:00:10]} 113. Ke7 {[%clk 0:00:11]}  Re6+ {[%clk 0:00:11]} 114. Kd8 {[%clk 0:00:11]}  Rg6 {[%clk 0:00:11]} 115. Kd7 {[%clk 0:00:12]}  Re6 {[%clk 0:00:12]} 116. Qg5+ {[%clk 0:00:12]}  Rg6 {[%clk 0:00:12]} 117. Qh4 {[%clk 0:00:12]}  Re6 {[%clk 0:00:12]} 118. Qd4 {[%clk 0:00:10]}  Rg6 {[%clk 0:00:13]} 119. Qd3 {[%clk 0:00:10]}  Re6 {[%clk 0:00:14]} 120. Kc7 {[%clk 0:00:10]}  Rg6 {[%clk 0:00:14]} 121. Qe4 {[%clk 0:00:10]}  Re6 {[%clk 0:00:15]} 122. Qf4 {[%clk 0:00:10]}  Rg6 {[%clk 0:00:16]} 123. Kd7 {[%clk 0:00:11]}  Re6 {[%clk 0:00:16]} 1/2-1/2


[Site "https://www.chess.com"]

[Event "Titled Tuesday Blitz February 07 Early 2023"]
[White "Kosakowski, Jakub"]
[Black "Mohamed Anees M"]
[WhiteFideId "1185080"]
[BlackFideId "35065815"]
[WhiteElo "2485"]
[BlackElo "2315"]
[Result "1-0"]
[Round "11"]
[TimeControl "180+2"]
[Date "2023.02.07"]
[WhiteClock "0:01:26"]
[BlackClock "0:00:32"]

1. e4 {[%clk 0:02:50]}  c5 {[%clk 0:02:59]} 2. Nf3 {[%clk 0:02:50]}  Nc6 {[%clk 0:02:59]} 3. c3 {[%clk 0:02:50]}  Nf6 {[%clk 0:02:59]} 4. e5 {[%clk 0:02:50]}  Nd5 {[%clk 0:02:59]} 5. Bc4 {[%clk 0:02:50]}  Nb6 {[%clk 0:02:58]} 6. Bb3 {[%clk 0:02:51]}  c4 {[%clk 0:02:59]} 7. Bc2 {[%clk 0:02:51]}  g6 {[%clk 0:02:58]} 8. O-O {[%clk 0:02:50]}  Bg7 {[%clk 0:02:58]} 9. Re1 {[%clk 0:02:51]}  O-O {[%clk 0:02:58]} 10. a4 {[%clk 0:02:51]}  d6 {[%clk 0:02:57]} 11. a5 {[%clk 0:02:50]}  Nd5 {[%clk 0:02:57]} 12. exd6 {[%clk 0:02:49]}  Qxd6 {[%clk 0:02:57]} 13. h3 {[%clk 0:02:46]}  Nf4 {[%clk 0:02:54]} 14. Na3 {[%clk 0:02:44]}  Be6 {[%clk 0:02:52]} 15. Nb5 {[%clk 0:02:35]}  Qc5 {[%clk 0:02:46]} 16. Nc7 {[%clk 0:02:33]}  Rad8 {[%clk 0:02:42]} 17. d4 {[%clk 0:02:33]}  cxd3 {[%clk 0:02:37]} 18. Bxf4 {[%clk 0:02:32]}  dxc2 {[%clk 0:02:37]} 19. Qxc2 {[%clk 0:02:33]}  Bf5 {[%clk 0:02:34]} 20. Qe2 {[%clk 0:02:33]}  Rd7 {[%clk 0:01:58]} 21. Qb5 {[%clk 0:02:26]}  Qxb5 {[%clk 0:01:50]} 22. Nxb5 {[%clk 0:02:27]}  a6 {[%clk 0:01:43]} 23. Nbd4 {[%clk 0:02:13]}  Nxd4 {[%clk 0:01:37]} 24. Nxd4 {[%clk 0:02:13]}  Bd3 {[%clk 0:01:28]} 25. Rad1 {[%clk 0:02:08]}  Bc4 {[%clk 0:01:27]} 26. Nf5 {[%clk 0:02:06]}  Rfd8 {[%clk 0:01:14]} 27. Nxe7+ {[%clk 0:02:05]}  Kf8 {[%clk 0:01:14]} 28. Rxd7 {[%clk 0:02:04]}  Rxd7 {[%clk 0:01:15]} 29. Nc8 {[%clk 0:02:05]}  Be6 {[%clk 0:01:06]} 30. Nb6 {[%clk 0:02:05]}  Rd3 {[%clk 0:01:05]} 31. Kf1 {[%clk 0:02:04]}  h6 {[%clk 0:00:58]} 32. Ke2 {[%clk 0:02:04]}  Rd8 {[%clk 0:00:58]} 33. Bc7 {[%clk 0:02:03]}  Re8 {[%clk 0:00:56]} 34. Kd2 {[%clk 0:01:59]}  h5 {[%clk 0:00:56]} 35. b4 {[%clk 0:01:54]}  Bh6+ {[%clk 0:00:51]} 36. f4 {[%clk 0:01:53]}  Kg8 {[%clk 0:00:45]} 37. c4 {[%clk 0:01:44]}  Re7 {[%clk 0:00:44]} 38. Bd6 {[%clk 0:01:44]}  Re8 {[%clk 0:00:44]} 39. Kc3 {[%clk 0:01:40]}  Rd8 {[%clk 0:00:43]} 40. Be5 {[%clk 0:01:39]}  Bf5 {[%clk 0:00:39]} 41. Nd5 {[%clk 0:01:37]}  Be6 {[%clk 0:00:36]} 42. Rd1 {[%clk 0:01:37]}  Kf8 {[%clk 0:00:35]} 43. Rd4 {[%clk 0:01:28]}  g5 {[%clk 0:00:32]} 44. Bf6 {[%clk 0:01:26]} 1-0


[Site "https://www.chess.com"]

[Event "Titled Tuesday Blitz February 07 Early 2023"]
[White "Poliakova, Varvara"]
[Black "Maximov, Dmitry"]
[WhiteFideId "13518313"]
[BlackFideId "14105659"]
[WhiteElo "2010"]
[BlackElo "2497"]
[Result "0-1"]
[Round "11"]
[TimeControl "180+2"]
[Date "2023.02.07"]
[WhiteClock "0:00:51"]
[BlackClock "0:00:25"]

1. e4 {[%clk 0:02:54]}  c5 {[%clk 0:02:59]} 2. Nf3 {[%clk 0:02:52]}  d6 {[%clk 0:02:59]} 3. d4 {[%clk 0:02:52]}  cxd4 {[%clk 0:03:00]} 4. Nxd4 {[%clk 0:02:53]}  Nf6 {[%clk 0:03:00]} 5. Nc3 {[%clk 0:02:54]}  a6 {[%clk 0:03:01]} 6. h3 {[%clk 0:02:53]}  h5 {[%clk 0:03:00]} 7. a4 {[%clk 0:02:50]}  Nc6 {[%clk 0:03:00]} 8. Be3 {[%clk 0:02:49]}  Bd7 {[%clk 0:02:57]} 9. g3 {[%clk 0:02:47]}  Rc8 {[%clk 0:02:55]} 10. Bg2 {[%clk 0:02:47]}  Ne5 {[%clk 0:02:55]} 11. Nd5 {[%clk 0:02:45]}  Nxd5 {[%clk 0:02:52]} 12. exd5 {[%clk 0:02:46]}  Nc4 {[%clk 0:02:43]} 13. Bc1 {[%clk 0:02:46]}  g6 {[%clk 0:02:36]} 14. b3 {[%clk 0:02:46]}  Qa5+ {[%clk 0:02:32]} 15. Bd2 {[%clk 0:02:39]}  Nxd2 {[%clk 0:02:29]} 16. Qxd2 {[%clk 0:02:40]}  Qxd2+ {[%clk 0:02:27]} 17. Kxd2 {[%clk 0:02:41]}  Bh6+ {[%clk 0:02:26]} 18. Kd3 {[%clk 0:02:40]}  O-O {[%clk 0:02:07]} 19. c4 {[%clk 0:02:39]}  Rc7 {[%clk 0:02:00]} 20. Rae1 {[%clk 0:02:39]}  Bc8 {[%clk 0:01:56]} 21. f4 {[%clk 0:02:38]}  h4 {[%clk 0:01:53]} 22. f5 {[%clk 0:02:36]}  hxg3 {[%clk 0:01:40]} 23. fxg6 {[%clk 0:02:36]}  fxg6 {[%clk 0:01:39]} 24. Be4 {[%clk 0:02:36]}  Rf2 {[%clk 0:01:32]} 25. Bxg6 {[%clk 0:02:30]}  g2 {[%clk 0:01:29]} 26. Rhg1 {[%clk 0:02:29]}  Bxh3 {[%clk 0:01:29]} 27. Be4 {[%clk 0:02:25]}  e5 {[%clk 0:01:10]} 28. dxe6 {[%clk 0:02:22]}  Rg7 {[%clk 0:01:10]} 29. e7 {[%clk 0:02:09]}  Rxe7 {[%clk 0:01:06]} 30. Bd5+ {[%clk 0:02:01]}  Kf8 {[%clk 0:01:06]} 31. Be6 {[%clk 0:01:59]}  Rg7 {[%clk 0:00:53]} 32. Ke4 {[%clk 0:01:37]}  Rg3 {[%clk 0:00:47]} 33. Bxh3 {[%clk 0:01:36]}  Rxh3 {[%clk 0:00:47]} 34. Kd5 {[%clk 0:01:32]}  Kf7 {[%clk 0:00:41]} 35. Kxd6 {[%clk 0:01:26]}  Bf4+ {[%clk 0:00:41]} 36. Kd7 {[%clk 0:01:17]}  Rd3 {[%clk 0:00:35]} 37. Re7+ {[%clk 0:01:17]}  Kf6 {[%clk 0:00:34]} 38. Re4 {[%clk 0:01:14]}  Be5 {[%clk 0:00:32]} 39. Kc8 {[%clk 0:01:12]}  Rxd4 {[%clk 0:00:31]} 40. Ree1 {[%clk 0:01:05]}  Rb2 {[%clk 0:00:30]} 41. Kxb7 {[%clk 0:01:02]}  Bh2 {[%clk 0:00:27]} 42. Rxg2 {[%clk 0:00:56]}  Rxg2 {[%clk 0:00:27]} 43. c5 {[%clk 0:00:57]}  Rb2 {[%clk 0:00:26]} 44. Re3 {[%clk 0:00:57]}  Bf4 {[%clk 0:00:25]} 45. Rf3 {[%clk 0:00:57]}  Ke6 {[%clk 0:00:25]} 46. c6 {[%clk 0:00:57]}  Rb4+ {[%clk 0:00:25]} 47. Kxa6 {[%clk 0:00:56]}  R2xb3 {[%clk 0:00:25]} 48. Rf1 {[%clk 0:00:51]}  Rxa4# {[%clk 0:00:25]} 0-1


[Site "https://www.chess.com"]

[Event "Titled Tuesday Blitz February 07 Early 2023"]
[White "Iniyan, P"]
[Black "Cori T., Deysi"]
[WhiteFideId "25002767"]
[BlackFideId "3801934"]
[WhiteElo "2525"]
[BlackElo "2362"]
[Result "0-1"]
[Round "11"]
[TimeControl "180+2"]
[Date "2023.02.07"]
[WhiteClock "0:00:10"]
[BlackClock "0:01:04"]

1. b3 {[%clk 0:03:00]}  Nf6 {[%clk 0:02:58]} 2. Bb2 {[%clk 0:03:01]}  d6 {[%clk 0:02:58]} 3. f4 {[%clk 0:03:02]}  Nc6 {[%clk 0:02:57]} 4. Nf3 {[%clk 0:03:02]}  Bg4 {[%clk 0:02:56]} 5. e3 {[%clk 0:02:57]}  e5 {[%clk 0:02:56]} 6. fxe5 {[%clk 0:02:58]}  dxe5 {[%clk 0:02:56]} 7. Be2 {[%clk 0:02:58]}  Bc5 {[%clk 0:02:53]} 8. Nxe5 {[%clk 0:02:54]}  Bxe2 {[%clk 0:02:49]} 9. Qxe2 {[%clk 0:02:54]}  Nxe5 {[%clk 0:02:49]} 10. Bxe5 {[%clk 0:02:55]}  O-O {[%clk 0:02:49]} 11. O-O {[%clk 0:02:54]}  Nd7 {[%clk 0:02:49]} 12. Bb2 {[%clk 0:02:51]}  Re8 {[%clk 0:02:49]} 13. Nc3 {[%clk 0:02:41]}  Bf8 {[%clk 0:02:47]} 14. Nd5 {[%clk 0:02:37]}  Nc5 {[%clk 0:02:44]} 15. Qf3 {[%clk 0:02:34]}  f6 {[%clk 0:02:10]} 16. d3 {[%clk 0:01:28]}  c6 {[%clk 0:01:52]} 17. Nf4 {[%clk 0:01:14]}  Qe7 {[%clk 0:01:47]} 18. e4 {[%clk 0:01:11]}  Nd7 {[%clk 0:01:46]} 19. Nh5 {[%clk 0:01:09]}  Qc5+ {[%clk 0:01:46]} 20. Kh1 {[%clk 0:01:08]}  Ne5 {[%clk 0:01:44]} 21. Qe2 {[%clk 0:00:59]}  Ng6 {[%clk 0:01:43]} 22. Rae1 {[%clk 0:00:57]}  Bd6 {[%clk 0:01:23]} 23. d4 {[%clk 0:00:23]}  Qg5 {[%clk 0:01:23]} 24. Qc4+ {[%clk 0:00:20]}  Kh8 {[%clk 0:01:20]} 25. Rf5 {[%clk 0:00:21]}  Qxf5 {[%clk 0:01:06]} 26. Qf7 {[%clk 0:00:10]}  Qxh5 {[%clk 0:01:04]} 0-1


[Site "https://www.chess.com"]

[Event "Titled Tuesday Blitz February 07 Early 2023"]
[White "Leiva, Gianmarco"]
[Black "Czopor, Maciej"]
[WhiteFideId "3804399"]
[BlackFideId "21805431"]
[WhiteElo "2392"]
[BlackElo "2385"]
[Result "0-1"]
[Round "11"]
[TimeControl "180+2"]
[Date "2023.02.07"]
[WhiteClock "0:00:08"]
[BlackClock "0:01:06"]

1. e4 {[%clk 0:03:00]}  g6 {[%clk 0:02:58]} 2. d4 {[%clk 0:03:00]}  Bg7 {[%clk 0:02:57]} 3. Nc3 {[%clk 0:03:01]}  c6 {[%clk 0:02:57]} 4. Nf3 {[%clk 0:03:00]}  d5 {[%clk 0:02:57]} 5. h3 {[%clk 0:02:42]}  dxe4 {[%clk 0:02:57]} 6. Nxe4 {[%clk 0:02:43]}  Nf6 {[%clk 0:02:58]} 7. Nxf6+ {[%clk 0:02:40]}  exf6 {[%clk 0:02:59]} 8. c3 {[%clk 0:02:34]}  O-O {[%clk 0:02:59]} 9. Be2 {[%clk 0:02:28]}  Re8 {[%clk 0:02:59]} 10. O-O {[%clk 0:02:29]}  Nd7 {[%clk 0:03:00]} 11. Bf4 {[%clk 0:02:28]}  Nf8 {[%clk 0:03:00]} 12. Qd2 {[%clk 0:02:24]}  Ne6 {[%clk 0:02:56]} 13. Be3 {[%clk 0:02:21]}  f5 {[%clk 0:02:56]} 14. Rad1 {[%clk 0:02:19]}  f4 {[%clk 0:02:55]} 15. Bc4 {[%clk 0:02:15]}  fxe3 {[%clk 0:02:54]} 16. fxe3 {[%clk 0:02:16]}  Nc7 {[%clk 0:02:31]} 17. Ne5 {[%clk 0:02:01]}  Be6 {[%clk 0:02:00]} 18. Nxf7 {[%clk 0:01:48]}  Qd7 {[%clk 0:02:00]} 19. Qe2 {[%clk 0:01:34]}  Bxc4 {[%clk 0:01:55]} 20. Qxc4 {[%clk 0:01:34]}  Nd5 {[%clk 0:01:56]} 21. Rde1 {[%clk 0:01:33]}  Rf8 {[%clk 0:01:54]} 22. Ng5 {[%clk 0:01:27]}  Rxf1+ {[%clk 0:01:54]} 23. Rxf1 {[%clk 0:01:27]}  b5 {[%clk 0:01:47]} 24. Qb3 {[%clk 0:01:23]}  Bh6 {[%clk 0:01:40]} 25. Ne4 {[%clk 0:00:56]}  Bxe3+ {[%clk 0:01:18]} 26. Kh1 {[%clk 0:00:56]}  Kg7 {[%clk 0:01:15]} 27. Nc5 {[%clk 0:00:52]}  Qd6 {[%clk 0:01:13]} 28. c4 {[%clk 0:00:52]}  bxc4 {[%clk 0:01:10]} 29. Qb7+ {[%clk 0:00:53]}  Nc7 {[%clk 0:01:08]} 30. Qxc7+ {[%clk 0:00:31]}  Qxc7 {[%clk 0:01:09]} 31. Ne6+ {[%clk 0:00:32]}  Kh6 {[%clk 0:01:10]} 32. Nxc7 {[%clk 0:00:33]}  Rb8 {[%clk 0:01:10]} 33. Rf3 {[%clk 0:00:28]}  Bxd4 {[%clk 0:01:07]} 34. b3 {[%clk 0:00:08]}  c3 {[%clk 0:01:07]} 35. Rf2 {[%clk 0:00:08]}  Bxf2 {[%clk 0:01:06]} 0-1


[Site "https://www.chess.com"]

[Event "Titled Tuesday Blitz February 07 Early 2023"]
[White "Matinian, Nikita"]
[Black "Belov, Alexei"]
[WhiteFideId "24129100"]
[BlackFideId "4128206"]
[WhiteElo "2407"]
[BlackElo "2421"]
[Result "1-0"]
[Round "11"]
[TimeControl "180+2"]
[Date "2023.02.07"]
[WhiteClock "0:00:38"]
[BlackClock "0:00:23"]

1. d4 {[%clk 0:02:56]}  e6 {[%clk 0:02:59]} 2. e4 {[%clk 0:02:52]}  d5 {[%clk 0:02:59]} 3. Nc3 {[%clk 0:02:52]}  Nf6 {[%clk 0:02:59]} 4. e5 {[%clk 0:02:52]}  Ne4 {[%clk 0:02:59]} 5. Qg4 {[%clk 0:02:47]}  f5 {[%clk 0:02:54]} 6. exf6 {[%clk 0:02:46]}  Nxf6 {[%clk 0:02:54]} 7. Qg5 {[%clk 0:02:43]}  c5 {[%clk 0:02:46]} 8. Nf3 {[%clk 0:02:41]}  Nc6 {[%clk 0:02:43]} 9. Bb5 {[%clk 0:02:41]}  cxd4 {[%clk 0:02:40]} 10. Nxd4 {[%clk 0:02:38]}  Bd7 {[%clk 0:02:36]} 11. Be3 {[%clk 0:02:34]}  Nxd4 {[%clk 0:02:16]} 12. Bxd4 {[%clk 0:02:33]}  Bxb5 {[%clk 0:02:11]} 13. Nxb5 {[%clk 0:02:34]}  Qa5+ {[%clk 0:02:10]} 14. Nc3 {[%clk 0:02:33]}  O-O-O {[%clk 0:02:00]} 15. O-O-O {[%clk 0:02:15]}  Bb4 {[%clk 0:01:35]} 16. Qxg7 {[%clk 0:01:59]}  Ne4 {[%clk 0:01:20]} 17. Nxe4 {[%clk 0:01:43]}  dxe4 {[%clk 0:01:17]} 18. a3 {[%clk 0:01:37]}  Rhg8 {[%clk 0:01:01]} 19. Qxh7 {[%clk 0:01:30]}  Rxg2 {[%clk 0:00:52]} 20. Qxe4 {[%clk 0:01:26]}  Rgg8 {[%clk 0:00:46]} 21. Qxe6+ {[%clk 0:01:25]}  Kb8 {[%clk 0:00:46]} 22. Qe5+ {[%clk 0:00:49]}  Ka8 {[%clk 0:00:46]} 23. Qxa5 {[%clk 0:00:49]}  Bxa5 {[%clk 0:00:47]} 24. h4 {[%clk 0:00:46]}  Rd7 {[%clk 0:00:34]} 25. h5 {[%clk 0:00:46]}  Rh7 {[%clk 0:00:34]} 26. h6 {[%clk 0:00:45]}  Bc7 {[%clk 0:00:30]} 27. Be3 {[%clk 0:00:41]}  Rg6 {[%clk 0:00:26]} 28. Rdg1 {[%clk 0:00:39]}  Rxg1+ {[%clk 0:00:23]} 29. Rxg1 {[%clk 0:00:39]}  a6 {[%clk 0:00:23]} 30. Rg7 {[%clk 0:00:38]} 1-0


[Site "https://www.chess.com"]

[Event "Titled Tuesday Blitz February 07 Early 2023"]
[White "Tan, Zhongyi"]
[Black "Jaskolka, Tomasz"]
[WhiteFideId "8603642"]
[BlackFideId "1170791"]
[WhiteElo "2517"]
[BlackElo "2238"]
[Result "1-0"]
[Round "11"]
[TimeControl "180+2"]
[Date "2023.02.07"]
[WhiteClock "0:01:01"]
[BlackClock "0:01:10"]

1. d4 {[%clk 0:02:58]}  d5 {[%clk 0:02:58]} 2. c4 {[%clk 0:02:58]}  e5 {[%clk 0:02:59]} 3. dxe5 {[%clk 0:02:57]}  d4 {[%clk 0:02:59]} 4. Nf3 {[%clk 0:02:58]}  Nc6 {[%clk 0:02:59]} 5. a3 {[%clk 0:02:58]}  a5 {[%clk 0:03:00]} 6. e3 {[%clk 0:02:56]}  Bc5 {[%clk 0:02:59]} 7. exd4 {[%clk 0:02:40]}  Nxd4 {[%clk 0:02:59]} 8. Be2 {[%clk 0:02:18]}  Bf5 {[%clk 0:02:53]} 9. Nxd4 {[%clk 0:02:17]}  Bxd4 {[%clk 0:02:50]} 10. O-O {[%clk 0:02:12]}  Bxe5 {[%clk 0:02:47]} 11. Bf3 {[%clk 0:02:11]}  c6 {[%clk 0:02:23]} 12. Qe2 {[%clk 0:02:05]}  f6 {[%clk 0:02:11]} 13. Rd1 {[%clk 0:02:04]}  Qe7 {[%clk 0:02:10]} 14. Be3 {[%clk 0:01:57]}  Nh6 {[%clk 0:02:05]} 15. Bxh6 {[%clk 0:01:56]}  gxh6 {[%clk 0:02:05]} 16. Re1 {[%clk 0:01:33]}  O-O-O {[%clk 0:01:53]} 17. Nc3 {[%clk 0:01:33]}  Qc7 {[%clk 0:01:52]} 18. g3 {[%clk 0:01:28]}  Bxc3 {[%clk 0:01:46]} 19. bxc3 {[%clk 0:01:29]}  Bd3 {[%clk 0:01:44]} 20. Qe6+ {[%clk 0:01:27]}  Qd7 {[%clk 0:01:44]} 21. Qe3 {[%clk 0:01:06]}  Bxc4 {[%clk 0:01:12]} 22. Rad1 {[%clk 0:01:04]}  Qc7 {[%clk 0:01:10]} 23. Qa7 {[%clk 0:01:02]}  Ba6 {[%clk 0:01:10]} 24. Bg4+ {[%clk 0:01:01]} 1-0


[Site "https://www.chess.com"]